[Event "Early-Titled-Tuesday-Blitz-November-28-2023"]
[Site "Chess.com"]
[Date "2023.11.28"]
[Round "4"]
[White "InitiatingASC"]
[Black "SashaKuzhilniy"]
[Result "0-1"]
[WhiteElo "2333"]
[BlackElo "2634"]
[TimeControl "180+1"]
[EndTime "8:39:12 PST"]
[Termination "SashaKuzhilniy won on time"]

1. d4 {[%clk 0:03:00.1]} 1... g6 {[%clk 0:03:00.5]} 2. c4 {[%clk 0:02:59.8]}
2... Bg7 {[%clk 0:03:01.1]} 3. Nc3 {[%clk 0:02:58.4]} 3... d6 {[%clk 0:03:01.4]}
4. Nf3 {[%clk 0:02:57.7]} 4... Nf6 {[%clk 0:02:57]} 5. g3 {[%clk 0:02:57.9]}
5... O-O {[%clk 0:02:56.4]} 6. Bg2 {[%clk 0:02:58]} 6... Nc6 {[%clk 0:02:57.1]}
7. O-O {[%clk 0:02:57.6]} 7... e5 {[%clk 0:02:57.5]} 8. dxe5 {[%clk 0:02:53.6]}
8... Nxe5 {[%clk 0:02:56.8]} 9. Nxe5 {[%clk 0:02:38.4]} 9... dxe5 {[%clk
0:02:57.7]} 10. Bg5 {[%clk 0:02:36.2]} 10... Qxd1 {[%clk 0:02:51.6]} 11. Raxd1
{[%clk 0:02:31.6]} 11... c6 {[%clk 0:02:49.7]} 12. Ne4 {[%clk 0:02:22.6]} 12...
Nxe4 {[%clk 0:02:47.9]} 13. Bxe4 {[%clk 0:02:22.3]} 13... f6 {[%clk 0:02:46.3]}
14. Be3 {[%clk 0:02:21.5]} 14... Be6 {[%clk 0:02:44.3]} 15. b3 {[%clk 0:02:16]}
15... f5 {[%clk 0:02:44.3]} 16. Bc2 {[%clk 0:02:06.2]} 16... Rfd8 {[%clk
0:02:36.1]} 17. Rxd8+ {[%clk 0:01:52.9]} 17... Rxd8 {[%clk 0:02:37]} 18. Rd1
{[%clk 0:01:50.5]} 18... Rxd1+ {[%clk 0:02:33.9]} 19. Bxd1 {[%clk 0:01:50.3]}
19... b6 {[%clk 0:02:33.1]} 20. a4 {[%clk 0:01:30.2]} 20... Kf7 {[%clk
0:02:21.5]} 21. a5 {[%clk 0:01:29.6]} 21... c5 {[%clk 0:02:21.2]} 22. axb6
{[%clk 0:01:13.1]} 22... axb6 {[%clk 0:02:22.1]} 23. Bd2 {[%clk 0:01:07.4]}
23... Bf6 {[%clk 0:02:15]} 24. Bc2 {[%clk 0:01:03.4]} 24... g5 {[%clk
0:02:10.2]} 25. g4 {[%clk 0:00:53.7]} 25... f4 {[%clk 0:01:59]} 26. h3 {[%clk
0:00:45.6]} 26... Kg7 {[%clk 0:01:56.4]} 27. Be4 {[%clk 0:00:38.9]} 27... h5
{[%clk 0:01:56.3]} 28. f3 {[%clk 0:00:32]} 28... h4 {[%clk 0:01:55.4]} 29. Bc6
{[%clk 0:00:26.6]} 29... Kf8 {[%clk 0:01:52.2]} 30. e4 {[%clk 0:00:20.9]} 30...
Ke7 {[%clk 0:01:37.6]} 31. Kf2 {[%clk 0:00:20.3]} 31... Kd6 {[%clk 0:01:36.5]}
32. Bd5 {[%clk 0:00:16.8]} 32... Bd7 {[%clk 0:01:36.7]} 33. Ke2 {[%clk
0:00:16.3]} 33... Bd8 {[%clk 0:01:36.8]} 34. Kd3 {[%clk 0:00:16.3]} 34... b5
{[%clk 0:01:36.9]} 35. b4 {[%clk 0:00:10.8]} 35... bxc4+ {[%clk 0:01:33.6]} 36.
Kxc4 {[%clk 0:00:08]} 36... Bb6 {[%clk 0:01:33.8]} 37. bxc5+ {[%clk 0:00:07.1]}
37... Bxc5 {[%clk 0:01:34.7]} 38. Ba5 {[%clk 0:00:06.9]} 38... Ba4 {[%clk
0:01:07.8]} 39. Bd8 {[%clk 0:00:06.8]} 39... Bd1 {[%clk 0:01:05.1]} 40. Bxg5
{[%clk 0:00:07.3]} 40... Be2+ {[%clk 0:00:57]} 41. Kc3 {[%clk 0:00:06.4]} 41...
Bf2 {[%clk 0:00:39.7]} 42. Bh6 {[%clk 0:00:03.5]} 42... Bxf3 {[%clk 0:00:38.8]}
43. Bf8+ {[%clk 0:00:03.6]} 43... Kd7 {[%clk 0:00:38.3]} 44. g5 {[%clk
0:00:03.8]} 44... Bh5 {[%clk 0:00:35.8]} 45. Bg7 {[%clk 0:00:01.9]} 45... Bd4+
{[%clk 0:00:33.1]} 46. Kd2 {[%clk 0:00:02.4]} 46... f3 {[%clk 0:00:31.5]} 0-1

[Event "Early-Titled-Tuesday-Blitz-November-28-2023"]
[Site "Chess.com"]
[Date "2023.11.28"]
[Round "4"]
[White "Grandelicious"]
[Black "MokshAD1603"]
[Result "1-0"]
[WhiteElo "2904"]
[BlackElo "2656"]
[TimeControl "180+1"]
[EndTime "8:39:15 PST"]
[Termination "Grandelicious won by resignation"]

1. d4 {[%clk 0:03:00.9]} 1... Nf6 {[%clk 0:02:53.9]} 2. c4 {[%clk 0:03:00.3]}
2... e6 {[%clk 0:02:52.6]} 3. Nf3 {[%clk 0:02:59.9]} 3... d5 {[%clk 0:02:51.6]}
4. Nc3 {[%clk 0:02:59.7]} 4... Bb4 {[%clk 0:02:52.2]} 5. Bd2 {[%clk 0:02:57.1]}
5... O-O {[%clk 0:02:51]} 6. e3 {[%clk 0:02:56.9]} 6... b6 {[%clk 0:02:49.1]} 7.
cxd5 {[%clk 0:02:55.1]} 7... exd5 {[%clk 0:02:50]} 8. Bd3 {[%clk 0:02:50.8]}
8... Bd6 {[%clk 0:02:47.9]} 9. O-O {[%clk 0:02:48.1]} 9... Re8 {[%clk
0:02:48.1]} 10. Qc2 {[%clk 0:02:40.7]} 10... c5 {[%clk 0:02:38.8]} 11. dxc5
{[%clk 0:02:33.2]} 11... bxc5 {[%clk 0:02:38.6]} 12. Rfd1 {[%clk 0:02:23.2]}
12... Nc6 {[%clk 0:02:37.4]} 13. Bb5 {[%clk 0:02:19.4]} 13... Bd7 {[%clk
0:02:31.7]} 14. Be1 {[%clk 0:02:19.4]} 14... Nb4 {[%clk 0:02:12.4]} 15. Qa4
{[%clk 0:02:12.4]} 15... Bxb5 {[%clk 0:01:52.1]} 16. Nxb5 {[%clk 0:02:13.3]}
16... Bf8 {[%clk 0:01:50.1]} 17. Bxb4 {[%clk 0:02:10.8]} 17... cxb4 {[%clk
0:01:51]} 18. Nbd4 {[%clk 0:02:11.4]} 18... Qb6 {[%clk 0:01:46.2]} 19. Rac1
{[%clk 0:02:09]} 19... Rec8 {[%clk 0:01:46.8]} 20. g3 {[%clk 0:02:07.1]} 20...
h6 {[%clk 0:01:44.5]} 21. Kg2 {[%clk 0:02:07.5]} 21... Ne4 {[%clk 0:01:44]} 22.
Qb3 {[%clk 0:01:53.7]} 22... Rc5 {[%clk 0:01:41.4]} 23. Rxc5 {[%clk 0:01:50.2]}
23... Qxc5 {[%clk 0:01:40.6]} 24. Ne2 {[%clk 0:01:50.6]} 24... Qc4 {[%clk
0:01:19.6]} 25. Nf4 {[%clk 0:01:32.8]} 25... Rc8 {[%clk 0:01:15.7]} 26. Nd4
{[%clk 0:01:22.6]} 26... Nc5 {[%clk 0:01:08.5]} 27. Qxc4 {[%clk 0:01:05.6]}
27... dxc4 {[%clk 0:01:09.4]} 28. Nd5 {[%clk 0:01:04]} 28... Na4 {[%clk
0:01:06.8]} 29. b3 {[%clk 0:01:03.7]} 29... cxb3 {[%clk 0:01:03.6]} 30. axb3
{[%clk 0:00:57.2]} 30... Nc3 {[%clk 0:00:58.1]} 31. Rc1 {[%clk 0:00:54.9]} 31...
Bc5 {[%clk 0:00:46.5]} 32. Nxc3 {[%clk 0:00:45]} 32... Bxd4 {[%clk 0:00:45]} 33.
Ne2 {[%clk 0:00:45.4]} 33... Rxc1 {[%clk 0:00:45.1]} 34. Nxc1 {[%clk 0:00:46.3]}
34... Bc5 {[%clk 0:00:35.6]} 35. Kf3 {[%clk 0:00:45.3]} 35... f5 {[%clk
0:00:32.8]} 36. Nd3 {[%clk 0:00:45.1]} 36... Bd6 {[%clk 0:00:32.6]} 37. e4
{[%clk 0:00:45.1]} 37... fxe4+ {[%clk 0:00:33.4]} 38. Kxe4 {[%clk 0:00:46]}
38... Kf7 {[%clk 0:00:30.3]} 39. Kd5 {[%clk 0:00:46.6]} 39... Ke7 {[%clk
0:00:30.3]} 40. Kc4 {[%clk 0:00:42.5]} 40... a5 {[%clk 0:00:30.6]} 41. Kb5
{[%clk 0:00:42.5]} 41... Bc7 {[%clk 0:00:31.3]} 42. Nc5 {[%clk 0:00:34.9]} 42...
Kd6 {[%clk 0:00:24.1]} 43. Nb7+ {[%clk 0:00:35.2]} 43... Kd5 {[%clk 0:00:24.7]}
44. Nxa5 {[%clk 0:00:36.1]} 44... Bd6 {[%clk 0:00:24.2]} 45. Nc6 {[%clk
0:00:36.2]} 45... Ke4 {[%clk 0:00:24]} 46. Nxb4 {[%clk 0:00:34.6]} 46... Kf3
{[%clk 0:00:24.4]} 47. Nd3 {[%clk 0:00:35.2]} 47... Ke2 {[%clk 0:00:24]} 48. Kc4
{[%clk 0:00:34.6]} 48... Kf3 {[%clk 0:00:24.6]} 49. b4 {[%clk 0:00:34.3]} 49...
Kg2 {[%clk 0:00:25.1]} 50. h4 {[%clk 0:00:31.8]} 1-0

[Event "Early-Titled-Tuesday-Blitz-November-28-2023"]
[Site "Chess.com"]
[Date "2023.11.28"]
[Round "4"]
[White "LuisFSiles"]
[Black "tetrix83"]
[Result "0-1"]
[WhiteElo "2332"]
[BlackElo "2519"]
[TimeControl "180+1"]
[EndTime "8:39:15 PST"]
[Termination "tetrix83 won on time"]

1. e4 {[%clk 0:03:00.9]} 1... c5 {[%clk 0:02:54.5]} 2. Nf3 {[%clk 0:03:00.5]}
2... d6 {[%clk 0:02:53.7]} 3. d4 {[%clk 0:03:00.4]} 3... cxd4 {[%clk 0:02:54.6]}
4. Nxd4 {[%clk 0:03:00.7]} 4... Nf6 {[%clk 0:02:55.1]} 5. Nc3 {[%clk 0:03:01.3]}
5... a6 {[%clk 0:02:54.8]} 6. Bg5 {[%clk 0:03:01.7]} 6... Nbd7 {[%clk
0:02:53.9]} 7. Qe2 {[%clk 0:02:56.8]} 7... h6 {[%clk 0:02:52]} 8. Be3 {[%clk
0:02:45.7]} 8... e5 {[%clk 0:02:50.5]} 9. Nf5 {[%clk 0:02:33.5]} 9... g6 {[%clk
0:02:50.4]} 10. Ng3 {[%clk 0:02:27.6]} 10... Be7 {[%clk 0:02:46.2]} 11. O-O-O
{[%clk 0:02:26.1]} 11... h5 {[%clk 0:02:46.3]} 12. Qd2 {[%clk 0:02:15.1]} 12...
h4 {[%clk 0:02:38.8]} 13. Nge2 {[%clk 0:02:14.8]} 13... b5 {[%clk 0:02:39]} 14.
Kb1 {[%clk 0:02:10.4]} 14... Bb7 {[%clk 0:02:33.1]} 15. f3 {[%clk 0:02:08.8]}
15... b4 {[%clk 0:02:18.6]} 16. Nd5 {[%clk 0:02:08.6]} 16... Nxd5 {[%clk
0:02:18.7]} 17. exd5 {[%clk 0:02:08.8]} 17... a5 {[%clk 0:02:17.7]} 18. c4
{[%clk 0:02:04.3]} 18... bxc3 {[%clk 0:02:05.9]} 19. Nxc3 {[%clk 0:02:04]} 19...
O-O {[%clk 0:02:05]} 20. g3 {[%clk 0:01:56.9]} 20... Rc8 {[%clk 0:02:00.7]} 21.
gxh4 {[%clk 0:01:54.8]} 21... Bxh4 {[%clk 0:02:00]} 22. Rg1 {[%clk 0:01:54.5]}
22... Nc5 {[%clk 0:01:56.2]} 23. Bh3 {[%clk 0:01:47.2]} 23... Nd7 {[%clk
0:01:29]} 24. Ne4 {[%clk 0:01:42.1]} 24... Nf6 {[%clk 0:00:54.8]} 25. Bg5 {[%clk
0:01:05.3]} 25... Nxe4 {[%clk 0:00:48.8]} 26. fxe4 {[%clk 0:01:04.5]} 26... Bxg5
{[%clk 0:00:46.4]} 27. Rxg5 {[%clk 0:01:05.1]} 27... Rc4 {[%clk 0:00:44.7]} 28.
Rdg1 {[%clk 0:00:47.3]} 28... Rxe4 {[%clk 0:00:19.3]} 29. Bf5 {[%clk 0:00:19.6]}
29... Rd4 {[%clk 0:00:19.4]} 30. Bxg6 {[%clk 0:00:11.8]} 30... Rxd2 {[%clk
0:00:18.4]} 31. Bh7+ {[%clk 0:00:07.4]} 31... Kh8 {[%clk 0:00:15.8]} 32. Rh5
{[%clk 0:00:06.8]} 32... Rd1+ {[%clk 0:00:01.2]} 0-1

[Event "Early-Titled-Tuesday-Blitz-November-28-2023"]
[Site "Chess.com"]
[Date "2023.11.28"]
[Round "4"]
[White "sergeikim"]
[Black "platy3"]
[Result "0-1"]
[WhiteElo "2596"]
[BlackElo "2881"]
[TimeControl "180+1"]
[EndTime "8:39:18 PST"]
[Termination "platy3 won by resignation"]

1. d4 {[%clk 0:03:00.9]} 1... Nf6 {[%clk 0:02:56.7]} 2. c4 {[%clk 0:03:00.8]}
2... d6 {[%clk 0:02:56.2]} 3. Nc3 {[%clk 0:03:00.6]} 3... g6 {[%clk 0:02:57.1]}
4. e4 {[%clk 0:03:00.8]} 4... Bg7 {[%clk 0:02:57.8]} 5. Nge2 {[%clk 0:03:00.3]}
5... O-O {[%clk 0:02:58.5]} 6. Ng3 {[%clk 0:03:00]} 6... h5 {[%clk 0:02:49.2]}
7. Be2 {[%clk 0:02:59.8]} 7... e5 {[%clk 0:02:44.5]} 8. d5 {[%clk 0:02:59.6]}
8... a5 {[%clk 0:02:44.8]} 9. O-O {[%clk 0:02:58.7]} 9... Na6 {[%clk 0:02:44.9]}
10. h3 {[%clk 0:02:48]} 10... Nc5 {[%clk 0:02:43.7]} 11. Bg5 {[%clk 0:02:44.8]}
11... Bd7 {[%clk 0:02:41.7]} 12. Qd2 {[%clk 0:02:44.5]} 12... Qe8 {[%clk
0:02:41.4]} 13. f4 {[%clk 0:02:36.6]} 13... Nh7 {[%clk 0:02:40.4]} 14. f5 {[%clk
0:02:35.7]} 14... Nxg5 {[%clk 0:02:15.2]} 15. Qxg5 {[%clk 0:02:35]} 15... Kh7
{[%clk 0:02:15.9]} 16. f6 {[%clk 0:01:51]} 16... Bh6 {[%clk 0:02:13.8]} 17. Qh4
{[%clk 0:01:51.2]} 17... Rh8 {[%clk 0:02:13.4]} 18. Rf3 {[%clk 0:01:39.2]} 18...
Qf8 {[%clk 0:01:50]} 19. Raf1 {[%clk 0:01:37.1]} 19... Bd2 {[%clk 0:01:43]} 20.
Nxh5 {[%clk 0:01:29.6]} 20... Qh6 {[%clk 0:01:42.5]} 21. Rg3 {[%clk 0:01:28.1]}
21... Rhg8 {[%clk 0:01:35.6]} 22. Rg4 {[%clk 0:00:57]} 22... Bxg4 {[%clk
0:01:31.7]} 23. Bxg4 {[%clk 0:00:50.4]} 23... gxh5 {[%clk 0:01:31.4]} 24. Bf5+
{[%clk 0:00:50]} 24... Kh8 {[%clk 0:01:31.4]} 25. Nd1 {[%clk 0:00:49]} 25... Bg5
{[%clk 0:01:29.5]} 26. Qf2 {[%clk 0:00:48.4]} 26... Nd3 {[%clk 0:01:27.7]} 27.
Qf3 {[%clk 0:00:44.5]} 27... Nf4 {[%clk 0:01:26.6]} 28. g3 {[%clk 0:00:44.1]}
28... Bxf6 {[%clk 0:01:25.7]} 29. Kh2 {[%clk 0:00:43.4]} 29... Ng6 {[%clk
0:01:25.5]} 30. Ne3 {[%clk 0:00:41.5]} 30... Ne7 {[%clk 0:01:20.4]} 31. Bd7
{[%clk 0:00:40]} 31... Rg6 {[%clk 0:01:20.2]} 32. g4 {[%clk 0:00:37.2]} 32...
Bg5 {[%clk 0:01:18.2]} 33. Ng2 {[%clk 0:00:36.1]} 33... hxg4 {[%clk 0:01:15.1]}
34. Bxg4 {[%clk 0:00:34.1]} 34... Rf6 {[%clk 0:01:14.2]} 35. Qe2 {[%clk
0:00:33.4]} 35... Rxf1 {[%clk 0:01:13.9]} 36. Qxf1 {[%clk 0:00:33.6]} 36... Bf4+
{[%clk 0:01:14.6]} 37. Kg1 {[%clk 0:00:32.6]} 37... Rg8 {[%clk 0:01:14.4]} 38.
Qf2 {[%clk 0:00:31.9]} 38... Rg5 {[%clk 0:01:06]} 39. c5 {[%clk 0:00:31.3]}
39... f5 {[%clk 0:01:01.3]} 40. exf5 {[%clk 0:00:31.2]} 40... Nxf5 {[%clk
0:01:02]} 41. cxd6 {[%clk 0:00:28.8]} 41... cxd6 {[%clk 0:01:02.6]} 42. Qb6
{[%clk 0:00:27.7]} 42... Nd4 {[%clk 0:00:59.4]} 43. Nxf4 {[%clk 0:00:24.1]}
43... Rxg4+ {[%clk 0:00:53.5]} 44. hxg4 {[%clk 0:00:23.1]} 44... Qxf4 {[%clk
0:00:54.2]} 45. Qd8+ {[%clk 0:00:22.4]} 45... Kg7 {[%clk 0:00:54.9]} 46. Qe7+
{[%clk 0:00:21.8]} 46... Kg6 {[%clk 0:00:53.2]} 47. Qxd6+ {[%clk 0:00:21.1]}
47... Kg5 {[%clk 0:00:52]} 48. Qe7+ {[%clk 0:00:19.1]} 48... Kxg4 {[%clk
0:00:52.4]} 49. Qg7+ {[%clk 0:00:19.4]} 49... Kf3 {[%clk 0:00:47.6]} 50. Qg2+
{[%clk 0:00:14.6]} 50... Ke3 {[%clk 0:00:47.9]} 51. d6 {[%clk 0:00:10.6]} 51...
Nf3+ {[%clk 0:00:45.1]} 52. Kf1 {[%clk 0:00:10.4]} 52... Qc4+ {[%clk 0:00:45.3]}
0-1

[Event "Early-Titled-Tuesday-Blitz-November-28-2023"]
[Site "Chess.com"]
[Date "2023.11.28"]
[Round "4"]
[White "elohunter1999"]
[Black "AryanTari"]
[Result "0-1"]
[WhiteElo "2716"]
[BlackElo "2971"]
[TimeControl "180+1"]
[EndTime "8:39:19 PST"]
[Termination "AryanTari won by resignation"]

1. c4 {[%clk 0:03:00.9]} 1... e6 {[%clk 0:02:58.5]} 2. g3 {[%clk 0:03:00.4]}
2... d5 {[%clk 0:02:58.9]} 3. Bg2 {[%clk 0:03:00.4]} 3... dxc4 {[%clk
0:02:51.6]} 4. Qa4+ {[%clk 0:02:59.2]} 4... Bd7 {[%clk 0:02:51.7]} 5. Qxc4
{[%clk 0:02:58.9]} 5... Qc8 {[%clk 0:02:45.2]} 6. Nf3 {[%clk 0:02:49.8]} 6... c5
{[%clk 0:02:41.1]} 7. Ne5 {[%clk 0:02:45.9]} 7... Bc6 {[%clk 0:02:39.9]} 8. Nxc6
{[%clk 0:02:41.9]} 8... Nxc6 {[%clk 0:02:40.8]} 9. O-O {[%clk 0:02:39.4]} 9...
Nf6 {[%clk 0:02:40.9]} 10. Nc3 {[%clk 0:02:38.3]} 10... Be7 {[%clk 0:02:41.1]}
11. b3 {[%clk 0:02:35.4]} 11... O-O {[%clk 0:02:40.7]} 12. Bb2 {[%clk
0:02:28.1]} 12... Qd7 {[%clk 0:02:34.9]} 13. Rad1 {[%clk 0:02:24.3]} 13... Nd4
{[%clk 0:02:31.1]} 14. Ne4 {[%clk 0:01:57.1]} 14... Nxe4 {[%clk 0:02:22.7]} 15.
Bxe4 {[%clk 0:01:56.3]} 15... b5 {[%clk 0:02:17.2]} 16. Qd3 {[%clk 0:01:54]}
16... Rad8 {[%clk 0:02:17.8]} 17. Bxd4 {[%clk 0:01:50.6]} 17... Qxd4 {[%clk
0:02:13.1]} 18. Qxd4 {[%clk 0:01:48.5]} 18... Rxd4 {[%clk 0:02:10.7]} 19. d3
{[%clk 0:01:44.5]} 19... a5 {[%clk 0:02:03.2]} 20. Rc1 {[%clk 0:01:42.2]} 20...
a4 {[%clk 0:02:02.9]} 21. bxa4 {[%clk 0:01:28]} 21... Rxa4 {[%clk 0:02:01.6]}
22. Rc2 {[%clk 0:01:28.5]} 22... Rb8 {[%clk 0:01:58.6]} 23. Rb1 {[%clk
0:01:27.1]} 23... b4 {[%clk 0:01:53.8]} 24. g4 {[%clk 0:01:09.8]} 24... Bd6
{[%clk 0:01:52.5]} 25. h4 {[%clk 0:00:54.7]} 25... h6 {[%clk 0:01:52.8]} 26. e3
{[%clk 0:00:53.2]} 26... Kf8 {[%clk 0:01:52.8]} 27. g5 {[%clk 0:00:51.4]} 27...
hxg5 {[%clk 0:01:50.7]} 28. hxg5 {[%clk 0:00:52.3]} 28... Ke7 {[%clk 0:01:49.2]}
29. Kg2 {[%clk 0:00:50.2]} 29... Rb6 {[%clk 0:01:47.8]} 30. d4 {[%clk
0:00:43.9]} 30... cxd4 {[%clk 0:01:43.9]} 31. exd4 {[%clk 0:00:44.8]} 31... Rba6
{[%clk 0:01:29.1]} 32. Rbb2 {[%clk 0:00:43.7]} 32... R6a5 {[%clk 0:01:29]} 33.
g6 {[%clk 0:00:40.2]} 33... f5 {[%clk 0:01:24.4]} 34. Bc6 {[%clk 0:00:36.9]}
34... Ra3 {[%clk 0:01:24.5]} 35. Re2 {[%clk 0:00:37.1]} 35... Rc3 {[%clk
0:01:18.4]} 36. Bf3 {[%clk 0:00:33.2]} 36... Kf6 {[%clk 0:01:18.3]} 37. Rb3
{[%clk 0:00:30.7]} 37... Rxb3 {[%clk 0:01:14.2]} 38. axb3 {[%clk 0:00:31.6]}
38... Ra3 {[%clk 0:01:14.8]} 39. Re3 {[%clk 0:00:31.1]} 39... Bf4 {[%clk
0:01:13.6]} 40. Rd3 {[%clk 0:00:26.8]} 40... Kxg6 {[%clk 0:01:12.5]} 41. d5
{[%clk 0:00:15.2]} 41... e5 {[%clk 0:01:12.9]} 42. d6 {[%clk 0:00:10.4]} 42...
e4 {[%clk 0:01:13.5]} 43. d7 {[%clk 0:00:10.1]} 43... exf3+ {[%clk 0:01:11.6]}
44. Kxf3 {[%clk 0:00:11]} 44... Bc7 {[%clk 0:01:11.1]} 45. d8=Q {[%clk
0:00:11.3]} 45... Bxd8 {[%clk 0:01:11.2]} 46. Rxd8 {[%clk 0:00:12]} 46... Rxb3+
{[%clk 0:01:11.8]} 47. Kf4 {[%clk 0:00:11.7]} 47... Rc3 {[%clk 0:01:09.1]} 48.
Rd6+ {[%clk 0:00:11.7]} 48... Kh5 {[%clk 0:01:09.8]} 49. f3 {[%clk 0:00:08.2]}
49... Rc5 {[%clk 0:01:04.2]} 50. Rb6 {[%clk 0:00:08]} 50... g5+ {[%clk
0:01:04.6]} 51. Kg3 {[%clk 0:00:08.1]} 51... Rc4 {[%clk 0:01:00.3]} 52. Rb5
{[%clk 0:00:08.5]} 52... f4+ {[%clk 0:00:58.7]} 53. Kg2 {[%clk 0:00:08.1]} 53...
Rc2+ {[%clk 0:00:58.6]} 54. Kh3 {[%clk 0:00:08.2]} 54... Rc3 {[%clk 0:00:56.8]}
55. Kg2 {[%clk 0:00:07.9]} 55... b3 {[%clk 0:00:56.6]} 56. Rb4 {[%clk
0:00:06.8]} 56... Kh4 {[%clk 0:00:56.2]} 57. Rb8 {[%clk 0:00:05.2]} 57... Rc2+
{[%clk 0:00:55.9]} 58. Kf1 {[%clk 0:00:05.7]} 58... b2 {[%clk 0:00:53.9]} 0-1

[Event "Early-Titled-Tuesday-Blitz-November-28-2023"]
[Site "Chess.com"]
[Date "2023.11.28"]
[Round "4"]
[White "Gentlejimmy7"]
[Black "Sulthankan"]
[Result "1-0"]
[WhiteElo "2537"]
[BlackElo "2346"]
[TimeControl "180+1"]
[EndTime "8:39:19 PST"]
[Termination "Gentlejimmy7 won on time"]

1. c4 {[%clk 0:02:56.5]} 1... e5 {[%clk 0:02:55.9]} 2. g3 {[%clk 0:02:53.8]}
2... Nf6 {[%clk 0:02:54.7]} 3. Bg2 {[%clk 0:02:54.3]} 3... c6 {[%clk 0:02:53.8]}
4. Nf3 {[%clk 0:02:50.7]} 4... e4 {[%clk 0:02:52.1]} 5. Nd4 {[%clk 0:02:51.3]}
5... Qb6 {[%clk 0:02:48.8]} 6. Nb3 {[%clk 0:02:50.5]} 6... a5 {[%clk 0:02:48.5]}
7. d4 {[%clk 0:02:36.6]} 7... Bb4+ {[%clk 0:02:24.8]} 8. Bd2 {[%clk 0:02:34.3]}
8... a4 {[%clk 0:02:23.8]} 9. Bxb4 {[%clk 0:02:34.5]} 9... Qxb4+ {[%clk
0:02:22.4]} 10. N3d2 {[%clk 0:02:34.7]} 10... Qxb2 {[%clk 0:02:21.2]} 11. O-O
{[%clk 0:02:34.2]} 11... Qxd4 {[%clk 0:02:06.8]} 12. Qc2 {[%clk 0:02:30.7]}
12... e3 {[%clk 0:01:56.9]} 13. fxe3 {[%clk 0:02:31.6]} 13... Qxe3+ {[%clk
0:01:56.7]} 14. Kh1 {[%clk 0:02:32.3]} 14... O-O {[%clk 0:01:57.1]} 15. Rxf6
{[%clk 0:02:31.3]} 15... gxf6 {[%clk 0:01:55.8]} 16. Nc3 {[%clk 0:02:27.9]}
16... d6 {[%clk 0:01:41]} 17. Nde4 {[%clk 0:02:23.4]} 17... f5 {[%clk 0:01:35]}
18. Nxd6 {[%clk 0:02:18.3]} 18... Qe5 {[%clk 0:01:31.9]} 19. Nxc8 {[%clk
0:02:08.4]} 19... Rxc8 {[%clk 0:01:32.8]} 20. Rf1 {[%clk 0:02:08.4]} 20... Na6
{[%clk 0:01:18.1]} 21. Rxf5 {[%clk 0:02:06.7]} 21... Nb4 {[%clk 0:01:15.5]} 22.
Qe4 {[%clk 0:01:30.9]} 22... Qxc3 {[%clk 0:01:04.5]} 23. Qe7 {[%clk 0:01:12.2]}
23... Rf8 {[%clk 0:00:52]} 24. Be4 {[%clk 0:00:53.9]} 24... Rae8 {[%clk
0:00:37.7]} 25. Qg5+ {[%clk 0:00:53.2]} 25... Kh8 {[%clk 0:00:36.7]} 26. Bf3
{[%clk 0:00:52.2]} 26... Qg7 {[%clk 0:00:30]} 27. Qd2 {[%clk 0:00:50.1]} 27...
c5 {[%clk 0:00:21.8]} 28. Qd6 {[%clk 0:00:46.3]} 28... Re6 {[%clk 0:00:18.8]}
29. Qxc5 {[%clk 0:00:46.1]} 29... Nc6 {[%clk 0:00:16.6]} 30. Rg5 {[%clk
0:00:46.2]} 30... Qh6 {[%clk 0:00:15.2]} 31. Rh5 {[%clk 0:00:45.8]} 31... Re5
{[%clk 0:00:12.2]} 32. Rxe5 {[%clk 0:00:43]} 32... Nxe5 {[%clk 0:00:10.3]} 33.
Qxe5+ {[%clk 0:00:43.9]} 33... Qg7 {[%clk 0:00:09.8]} 34. Qd6 {[%clk 0:00:39.1]}
34... f6 {[%clk 0:00:08.6]} 35. Kg2 {[%clk 0:00:37.8]} 35... Re8 {[%clk
0:00:06.7]} 36. c5 {[%clk 0:00:36.4]} 36... Qe7 {[%clk 0:00:07]} 37. Qd4 {[%clk
0:00:35.7]} 37... Qe5 {[%clk 0:00:05.7]} 38. Qxa4 {[%clk 0:00:35.8]} 38... Rd8
{[%clk 0:00:02.7]} 39. Qc4 {[%clk 0:00:30.6]} 39... Rc8 {[%clk 0:00:02.4]} 40.
Qb3 {[%clk 0:00:27.4]} 40... Rxc5 {[%clk 0:00:02.9]} 41. Qxb7 {[%clk 0:00:27.9]}
41... Rc3 {[%clk 0:00:01.5]} 42. a4 {[%clk 0:00:23.8]} 1-0

[Event "Early-Titled-Tuesday-Blitz-November-28-2023"]
[Site "Chess.com"]
[Date "2023.11.28"]
[Round "4"]
[White "verrbaa"]
[Black "NowInChess"]
[Result "1-0"]
[WhiteElo "2471"]
[BlackElo "2173"]
[TimeControl "180+1"]
[EndTime "8:39:20 PST"]
[Termination "verrbaa won on time"]

1. e4 {[%clk 0:03:00.9]} 1... e6 {[%clk 0:03:00.2]} 2. d4 {[%clk 0:03:00.1]}
2... d5 {[%clk 0:03:00.7]} 3. Nc3 {[%clk 0:02:59.9]} 3... Nc6 {[%clk 0:03:00.6]}
4. Nf3 {[%clk 0:02:50.6]} 4... Nf6 {[%clk 0:03:00.7]} 5. e5 {[%clk 0:02:51]}
5... Ne4 {[%clk 0:03:00.4]} 6. Bd3 {[%clk 0:02:48.9]} 6... Bb4 {[%clk
0:03:00.3]} 7. O-O {[%clk 0:02:49.1]} 7... Nxc3 {[%clk 0:02:59.5]} 8. bxc3
{[%clk 0:02:49.5]} 8... Bxc3 {[%clk 0:03:00.2]} 9. Rb1 {[%clk 0:02:50.1]} 9...
h6 {[%clk 0:02:50.2]} 10. Ba3 {[%clk 0:02:31.8]} 10... a5 {[%clk 0:02:49.7]} 11.
Bb5 {[%clk 0:02:29.5]} 11... Bd7 {[%clk 0:02:49.2]} 12. Qd3 {[%clk 0:02:01.8]}
12... Bb4 {[%clk 0:02:44.6]} 13. c4 {[%clk 0:01:49.3]} 13... Qe7 {[%clk
0:01:57]} 14. cxd5 {[%clk 0:01:35.3]} 14... exd5 {[%clk 0:01:35.3]} 15. Bb2
{[%clk 0:01:29.1]} 15... Qe6 {[%clk 0:01:14.1]} 16. a3 {[%clk 0:01:11.2]} 16...
Be7 {[%clk 0:01:13.2]} 17. Rfe1 {[%clk 0:01:04.7]} 17... Nb8 {[%clk 0:01:04.9]}
18. Rbc1 {[%clk 0:00:54.9]} 18... c6 {[%clk 0:00:51.8]} 19. Ba4 {[%clk
0:00:54.7]} 19... Qf5 {[%clk 0:00:45.7]} 20. Qe2 {[%clk 0:00:52.3]} 20... Qh5
{[%clk 0:00:40]} 21. h3 {[%clk 0:00:44.2]} 21... Be6 {[%clk 0:00:36.7]} 22. Bc2
{[%clk 0:00:35.1]} 22... Nd7 {[%clk 0:00:31]} 23. Qd3 {[%clk 0:00:22.2]} 23...
Nb6 {[%clk 0:00:18.1]} 24. Nd2 {[%clk 0:00:17.8]} 24... Nc4 {[%clk 0:00:17.8]}
25. Nxc4 {[%clk 0:00:17.1]} 25... dxc4 {[%clk 0:00:18.7]} 26. Qe3 {[%clk
0:00:14.1]} 26... Bg5 {[%clk 0:00:12.1]} 27. f4 {[%clk 0:00:13.7]} 27... Bh4
{[%clk 0:00:11.9]} 28. Rf1 {[%clk 0:00:13.4]} 28... Bd5 {[%clk 0:00:11.1]} 29.
Kh2 {[%clk 0:00:10.3]} 29... Be7 {[%clk 0:00:08.6]} 30. f5 {[%clk 0:00:09.6]}
30... Bg5 {[%clk 0:00:06.8]} 31. Qg3 {[%clk 0:00:09.4]} 31... Bxc1 {[%clk
0:00:06.8]} 32. Bxc1 {[%clk 0:00:10.3]} 32... O-O {[%clk 0:00:04.8]} 33. f6
{[%clk 0:00:07.7]} 33... g6 {[%clk 0:00:05]} 34. Rf2 {[%clk 0:00:05.8]} 34...
Be6 {[%clk 0:00:04.9]} 35. Bd1 {[%clk 0:00:05.8]} 35... Qf5 {[%clk 0:00:01.8]}
36. Rxf5 {[%clk 0:00:05.4]} 36... Bxf5 {[%clk 0:00:02.2]} 37. Bxh6 {[%clk
0:00:05.6]} 37... c3 {[%clk 0:00:01.1]} 38. Bxf8 {[%clk 0:00:05.6]} 1-0